fUST/lending_fUST_20241130
["ID","MTS","AMOUNT","RATE_DAILY","PERIOD"]
[343716759,1732906246963,-3000.0,0.000287,2]
[343716760,1732906246973,-261.43,0.000287,2]
[343716761,1732906246982,-177.172919,0.000287,7]
[343716762,1732906246991,-177.172919,0.000287,7]
[343716763,1732906247001,-151.0,0.000287,7]
[343716764,1732906247010,-344.898764,0.000287,7]
[343716765,1732906247019,-344.898764,0.000287,7]
[343716766,1732906247029,-151.0,0.000287,7]
[343716767,1732906247038,-256.307854,0.000287,7]
[343716768,1732906247048,-316.311426,0.000287,7]
[343716769,1732906247059,-316.311426,0.000287,7]
[343716770,1732906247068,-151.0,0.000287,7]
[343716771,1732906247078,-151.0,0.000287,7]
[343716772,1732906247088,-151.0,0.000287,20]
[343716773,1732906247097,-151.0,0.000287,18]
[343716774,1732906247107,-855.55157,0.000287,7]
[343716775,1732906247117,-855.55157,0.000287,7]
[343716776,1732906247127,-151.0,0.000287,7]
[343716777,1732906247137,-151.0,0.000287,7]
[343716778,1732906247147,-151.0,0.000287,7]
[343716779,1732906247156,-151.0,0.000287,7]
[343716780,1732906247166,-192.674448,0.000287,7]
[343716781,1732906247175,-192.674448,0.000287,7]
[343716782,1732906247184,-151.0,0.000287,7]
[343716783,1732906247194,-211.4,0.000287,7]
[343716784,1732906247203,-151.0,0.000287,7]
[343716785,1732906247212,-211.4,0.000287,7]
[343716786,1732906247223,-151.0,0.000287,7]
[343716787,1732906247233,-151.0,0.000287,7]
[343716788,1732906247242,-151.0,0.000287,7]
[343716789,1732906247252,-347.634949,0.000287,7]
[343716790,1732906247261,-347.634949,0.000287,7]
[343716791,1732906247270,-179.654744,0.000287,2]
[343716792,1732906247280,-151.0,0.000287,7]
[343716793,1732906247290,-151.0,0.000287,7]
[343716794,1732906247301,-151.0,0.000287,7]
[343716795,1732906247312,-151.0,0.000287,7]
[343716796,1732906247323,-151.0,0.000287,7]
[343716797,1732906247332,-151.0,0.000287,7]
[343716798,1732906247342,-159.719854,0.000287,7]
[343716799,1732906247351,-159.719854,0.000287,7]
[343716800,1732906247360,-151.0,0.000287,7]
[343716801,1732906247370,-1000.0,0.000287,2]
[343716802,1732906247379,-3000.0,0.0002871,2]
[343716803,1732906247388,-151.0,0.0002871,7]
[343716804,1732906247398,-151.0,0.00028715,7]
[343716805,1732906247408,-2497.889778,0.00028715,7]
[343716806,1732906247418,-3000.0,0.0002872,2]
[343716807,1732906247427,-151.0,0.0002872,7]
[343716808,1732906247436,-151.0,0.0002872,7]
[343716809,1732906247445,-151.0,0.0002872,7]
[343716810,1732906247455,-151.0,0.0002872,7]
[343716811,1732906247464,-3486.627574,0.0002872,7]
[343716812,1732906247474,-3486.627574,0.0002872,7]
[343716813,1732906247483,-3000.0,0.0002873,2]
[343716814,1732906247493,-151.0,0.0002873,7]
[343716815,1732906247502,-151.0,0.0002873,7]
[343716816,1732906247511,-151.0,0.0002873,7]
[343716817,1732906247520,-615.599253,0.0002873,7]
[343716818,1732906247529,-615.599253,0.0002873,7]
[343716819,1732906247539,-151.0,0.0002873,7]
[343716820,1732906247548,-151.8818,0.0002873,7]
[343716821,1732906247559,-211.4,0.0002873,7]
[343716822,1732906247568,-151.0,0.0002873,7]
[343716823,1732906247578,-211.4,0.0002873,7]
[343716824,1732906247587,-151.0,0.0002873,7]
[343716825,1732906247597,-347.634949,0.0002873,7]
[343716826,1732906247605,-347.634949,0.0002873,7]
[343716827,1732906247615,-151.0,0.0002873,7]
[343716828,1732906247624,-151.0,0.0002873,7]
[343716829,1732906247633,-151.0,0.0002873,7]
[343716830,1732906247643,-151.0,0.0002873,7]
[343716831,1732906247652,-151.0,0.0002873,7]
[343716832,1732906247661,-151.0,0.0002873,7]
[343716833,1732906247671,-159.719854,0.0002873,7]
[343716834,1732906247680,-159.719854,0.0002873,7]
[343716835,1732906247690,-198.56175,0.0002873,7]
[343716836,1732906247702,-3000.0,0.0002874,2]
[343716837,1732906247712,-316.311426,0.0002874,7]
[343716838,1732906247722,-316.311426,0.0002874,7]
[343716839,1732906247732,-152.795366,0.0002874,7]
[343716840,1732906247742,-151.0,0.00028747,7]
[343716841,1732906247753,-3000.0,0.0002875,2]
[343716842,1732906247763,-3000.0,0.0002876,2]
[343716843,1732906247772,-855.55157,0.0002876,7]
[343716844,1732906247783,-855.55157,0.0002876,7]
[343716845,1732906247792,-151.0,0.0002876,7]
[343716846,1732906247802,-151.0,0.0002876,7]
[343716847,1732906247813,-192.674448,0.0002876,7]
[343716848,1732906247822,-192.674448,0.0002876,7]
[343716849,1732906247831,-151.0,0.0002876,7]
[343716850,1732906247840,-151.0,0.0002876,7]
[343716851,1732906247849,-151.0,0.0002876,7]
[343716852,1732906247859,-151.0,0.00028762,6]
[343716853,1732906247868,-237.05054139,0.00028767,2]
[343716854,1732906247877,-21926.67215749,0.00028767,2]
[343716855,1732906247886,-151.0,0.00028767,7]
[343716856,1732906247896,-151.0,0.00028767,7]
[343716857,1732906247905,-151.0,0.00028767,7]
[343716858,1732906247915,-151.624814,0.00028767,7]
[343716859,1732906247924,-151.0,0.00028767,7]
[343716860,1732906247934,-154.515049,0.00028767,7]
[343716861,1732906247944,-151.0,0.00028767,7]
[343716862,1732906247953,-151.0,0.00028767,7]
[343716863,1732906247963,-224.203823,0.00028767,7]
[343716864,1732906247972,-151.0,0.00028767,7]
[343716865,1732906247982,-151.0,0.00028767,7]
[343716866,1732906247991,-151.0,0.00028767,7]
[343716867,1732906248000,-249.049424,0.00028767,7]
[343716868,1732906248009,-151.0,0.00028767,7]
[343716869,1732906248019,-152.406146,0.00028767,7]
[343716870,1732906248028,-151.0,0.00028767,7]
[343716871,1732906248038,-153.007081,0.00028767,7]
[343716872,1732906248047,-269.137085,0.00028767,7]
[343716873,1732906248059,-269.137085,0.00028767,7]
[343716874,1732906248071,-269.137085,0.00028767,7]
[343716875,1732906248080,-269.137085,0.00028767,7]
[343716876,1732906248090,-269.137085,0.00028767,7]
[343716877,1732906248099,-269.137085,0.00028767,7]
[343716878,1732906248110,-269.137085,0.00028767,7]
[343716879,1732906248122,-269.137085,0.00028767,7]
[343716880,1732906248132,-269.137085,0.00028767,7]
[343716881,1732906248143,-269.137085,0.00028767,7]
[343716882,1732906248152,-269.137085,0.00028767,7]
[343716883,1732906248162,-269.137085,0.00028767,7]
[343716884,1732906248171,-269.137085,0.00028767,7]
[343716885,1732906248289,-269.137085,0.00028767,7]
[343716886,1732906248298,-151.0,0.00028767,2]
[343716887,1732906248309,-151.0,0.00028767,2]
[343716888,1732906248318,-151.0,0.00028767,2]
[343716889,1732906248327,-151.0,0.00028767,7]
[343716890,1732906248337,-152.788047,0.00028767,7]
[343716891,1732906248346,-151.0,0.00028767,7]
[343716892,1732906248354,-151.0,0.00028767,7]
[343716893,1732906248363,-151.0,0.00028767,7]
[343716894,1732906248372,-151.0,0.00028767,7]
[343716895,1732906248381,-151.0,0.00028767,7]
[343716896,1732906248390,-151.0,0.00028767,7]
[343716897,1732906248399,-151.0,0.00028767,7]
[343716898,1732906248409,-151.0,0.00028767,7]
[343716899,1732906248418,-151.0,0.00028767,7]
[343716900,1732906248427,-177.172919,0.00028767,7]
[343716901,1732906248436,-177.172919,0.00028767,7]
[343716902,1732906248445,-177.172919,0.00028767,7]
[343716903,1732906248454,-177.172919,0.00028767,7]
[343716904,1732906248463,-177.172919,0.00028767,7]
[343716905,1732906248473,-177.172919,0.00028767,7]
[343716906,1732906248482,-177.172919,0.00028767,7]
[343716907,1732906248492,-177.172919,0.00028767,7]
[343716908,1732906248501,-177.172919,0.00028767,7]
[343716909,1732906248511,-177.172919,0.00028767,7]
[343716910,1732906248520,-177.172919,0.00028767,7]
[343716911,1732906248531,-177.172919,0.00028767,7]
[343716912,1732906248540,-177.172919,0.00028767,7]
[343716913,1732906248549,-177.172919,0.00028767,7]
[343716914,1732906248560,-151.0,0.00028767,7]
[343716915,1732906248570,-151.0,0.00028767,7]
[343716916,1732906248579,-291.200078,0.00028767,7]
[343716917,1732906248588,-151.0,0.00028767,7]
[343716918,1732906248598,-151.532265,0.00028767,7]
[343716919,1732906248607,-151.216463,0.00028767,7]
[343716920,1732906248616,-500.0,0.00028767,3]
[343716921,1732906248626,-500.0,0.00028767,3]
[343716922,1732906248635,-500.0,0.00028767,3]
[343716923,1732906248645,-500.0,0.00028767,3]
[343716924,1732906248654,-500.0,0.00028767,3]
[343716925,1732906248664,-151.0,0.00028767,7]
[343716926,1732906248674,-151.0,0.00028767,7]
[343716927,1732906248683,-151.0,0.00028767,7]
[343716928,1732906248693,-151.0,0.00028767,7]
[343716929,1732906248704,-151.0,0.00028767,7]
[343716930,1732906248715,-151.0,0.00028767,7]
[343716931,1732906248725,-151.0,0.00028767,7]
[343716932,1732906248735,-151.0,0.00028767,7]
[343716933,1732906248743,-151.0,0.00028767,7]
[343716934,1732906248754,-151.0,0.00028767,7]
[343716935,1732906248763,-151.0,0.00028767,7]
[343716936,1732906248773,-151.0,0.00028767,7]
[343716937,1732906248783,-151.0,0.00028767,7]
[343716938,1732906248793,-151.0,0.00028767,7]
[343716939,1732906248803,-151.0,0.00028767,7]
[343716940,1732906248813,-151.0,0.00028767,7]
[343716941,1732906248822,-198.715534,0.00028767,7]
[343716942,1732906248832,-2497.889778,0.00028767,7]
[343716943,1732906248842,-2497.889778,0.00028767,7]
[343716944,1732906248852,-2497.889778,0.00028767,7]
[343716945,1732906248862,-2497.889778,0.00028767,7]
[343716946,1732906248871,-2497.889778,0.00028767,7]
[343716947,1732906248882,-2497.889778,0.00028767,7]
[343716948,1732906248892,-2497.889778,0.00028767,7]
[343716949,1732906248902,-2497.889778,0.00028767,7]
[343716950,1732906248911,-615.599253,0.00028767,7]
[343716951,1732906248921,-615.599253,0.00028767,7]
[343716952,1732906248931,-615.599253,0.00028767,7]
[343716953,1732906248940,-615.599253,0.00028767,7]
[343716954,1732906248950,-615.599253,0.00028767,7]
[343716955,1732906248960,-615.599253,0.00028767,7]
[343716956,1732906248970,-615.599253,0.00028767,7]
[343716957,1732906248980,-615.599253,0.00028767,7]
[343716958,1732906248989,-615.599253,0.00028767,7]
[343716959,1732906248998,-615.599253,0.00028767,7]
[343716960,1732906249008,-615.599253,0.00028767,7]
[343716961,1732906249018,-615.599253,0.00028767,7]
[343716962,1732906249027,-615.599253,0.00028767,7]
[343716963,1732906249038,-615.599244,0.00028767,7]
[343716964,1732906249047,-151.0,0.00028767,7]
[343716965,1732906249058,-151.0,0.00028767,7]
[343716966,1732906249068,-151.934126,0.00028767,7]
[343716967,1732906249078,-151.0,0.00028767,7]
[343716968,1732906249088,-151.0,0.00028767,7]
[343716969,1732906249098,-173.361491,0.00028767,7]
[343716970,1732906249108,-151.0,0.00028767,7]
[343716971,1732906249117,-500.0,0.00028767,3]
[343716972,1732906249127,-500.0,0.00028767,3]
[343716973,1732906249136,-500.0,0.00028767,3]
[343716974,1732906249146,-338.66,0.00028767,3]
[343716975,1732906249155,-3486.627574,0.00028767,7]
[343716976,1732906249164,-3486.627574,0.00028767,7]
[343716977,1732906249174,-3486.627574,0.00028767,7]
[343716978,1732906249183,-3486.627574,0.00028767,7]
[343716979,1732906249193,-3486.627574,0.00028767,7]
[343716980,1732906249203,-3486.627574,0.00028767,7]
[343716981,1732906249212,-3486.627574,0.00028767,7]
[343716982,1732906249222,-3486.627574,0.00028767,7]
[343716983,1732906249231,-3486.627574,0.00028767,7]
[343716984,1732906249241,-3486.627574,0.00028767,7]
[343716985,1732906249250,-3486.627574,0.00028767,7]
[343716986,1732906249260,-3486.627574,0.00028767,7]
[343716987,1732906249269,-3486.627574,0.00028767,7]
[343716988,1732906249279,-3486.627574,0.00028767,7]
[343716989,1732906249289,-3486.627574,0.00028767,7]
[343716990,1732906249298,-3486.627574,0.00028767,7]
[343716991,1732906249309,-3486.627574,0.00028767,7]
[343716992,1732906249318,-3486.627576,0.00028767,7]
[343716993,1732906249328,-500.0,0.00028767,3]
[343716994,1732906249337,-500.0,0.00028767,3]
[343716995,1732906249346,-500.0,0.00028767,3]
[343716996,1732906249355,-500.0,0.00028767,3]
[343716997,1732906249364,-500.0,0.00028767,3]
[343716998,1732906249373,-295.21721255,0.00028767,3]
[343716999,1732906249471,-204.78278745,0.00028767,3]
[343717000,1732906249481,-222.18722455,0.00028767,3]
[343717002,1732906615278,166.855676,0.00013973,2]
[343717004,1732907140140,-203.9481754,0.00024449,2]
[343717005,1732907140162,-56.77957855,0.00024567,2]
[343717008,1732907241088,-193.22042145,0.00024567,2]
[343717009,1732907241112,-312.931913,0.00025,2]
[343717010,1732907241137,-5.58813046,0.00025001,2]
[343717011,1732907250134,-294.41186954,0.00025001,2]
[343717012,1732907250154,-300.0,0.00025001,2]
[343717013,1732907250176,-4527.5840387,0.00025002,2]
[343717014,1732907268675,166.855676,0.00013973,2]
[343717046,1732907432083,-172.248201,0.00024321,2]
[343717047,1732907432094,-151.66342638,0.00024575,2]
[343717048,1732907432106,-2228.52080192,0.00024575,2]
[343717050,1732907432116,-300.0,0.00024689,2]
[343717052,1732907432127,-24900.0,0.0002469,2]
[343717054,1732907432136,-472.4159613,0.00025002,2]
[343717056,1732907432146,-773.55684342,0.00025711,2]
[343717058,1732907432156,-164.999,0.0002581,11]
[343717060,1732907432170,-594.59146232,0.00025811,2]
[343717062,1732907432180,-500.0,0.00025811,2]
[343717064,1732907432190,-500.0,0.00025811,2]
[343717066,1732907432200,-500.0,0.00025811,2]
[343717068,1732907432209,-500.0,0.00025811,2]
[343717070,1732907432219,-500.0,0.00025811,2]
[343717072,1732907432229,-500.0,0.00025811,2]
[343717074,1732907432238,-354.58681048,0.00025811,2]
[343717076,1732907432248,-317.17631227,0.00025811,2]
[343717078,1732907432257,-40000.00000001,0.00025812,2]
[343717080,1732907432267,-229.51971872,0.000259,2]
[343717082,1732907432276,-1000.5,0.00026,31]
[343717084,1732907432286,-179.59470222,0.00026,2]
[343717086,1732907432295,-166.855676,0.00026274,2]
[343717088,1732907432305,-773.55684342,0.00026372,2]
[343717090,1732907432315,-773.55684342,0.00027033,2]
[343717092,1732907432324,-420.0,0.00027158,2]
[343717094,1732907432333,-229.51971872,0.00027284,2]
[343717096,1732907432342,-970.209712,0.0002739,2]
[343717098,1732907432352,-500.0,0.00027397,2]
[343717100,1732907432362,-773.55684342,0.00027694,2]
[343717102,1732907432371,-1000.0,0.00028,28]
[343717104,1732907432380,-150.0,0.00028165,2]
[343717106,1732907432389,-150.0,0.00028275,2]
[343717107,1732907432399,-531.0,0.00028275,2]
[343717109,1732907432408,-2178.0,0.00028275,2]
[343717112,1732907432417,-2377.0,0.00028275,2]
[343717113,1732907432427,-19.35031036,0.00028297,2]
[343717129,1732907438058,-705.70273624,0.00025812,2]
[343717130,1732907438068,-5629.59310992,0.00028297,2]
[343717131,1732907438078,-773.55684342,0.00028356,2]
[343717132,1732907438092,-5648.94342029,0.00028518,2]
[343717133,1732907438103,-1240.65,0.0002859,10]
[343717134,1732907438113,-1033.87,0.0002859,10]
[343717135,1732907438123,-3000.0,0.000286,2]
[343717136,1732907438134,-3000.0,0.0002861,2]
[343717137,1732907438144,-3000.0,0.0002862,2]
[343717138,1732907438154,-3000.0,0.0002863,2]
[343717139,1732907438165,-3000.0,0.0002864,2]
[343717140,1732907438174,-3000.0,0.0002865,2]
[343717141,1732907438185,-3000.0,0.0002866,2]
[343717142,1732907438194,-328.14400059,0.00028667,2]
[343717143,1732907438204,-1014.49280021,0.00028667,2]
[343717144,1732907438213,-229.51971872,0.00028667,2]
[343717145,1732907438222,-577.24909426,0.00028667,2]
[343717146,1732907438234,-88.75090574,0.00028667,2]
[343717147,1732907438244,-3000.0,0.0002867,2]
[343717148,1732907438254,-3000.0,0.0002868,2]
[343717149,1732907438263,-3000.0,0.0002869,2]
[343717150,1732907438272,-1373.839378,0.000287,7]
[343717151,1732907438281,-3000.0,0.000287,2]
[343717152,1732907438291,-150.0,0.000287,2]
[343717153,1732907438300,-151.0,0.000287,16]
[343717154,1732907438310,-151.0,0.000287,16]
[343717155,1732907438320,-3000.0,0.0002871,2]
[343717156,1732907438329,-3000.0,0.0002872,2]
[343717157,1732907438339,-1373.839378,0.0002873,7]
[343717158,1732907438348,-3000.0,0.0002873,2]
[343717159,1732907438357,-3000.0,0.0002874,2]
[343717160,1732907438367,-3000.0,0.0002875,2]
[343717161,1732907438377,-151.0,0.0002876,7]
[343717162,1732907438388,-3000.0,0.0002876,2]
[343717163,1732907438398,-1427.15484253,0.00028766,2]
[343717164,1732907438407,-10963.33607874,0.00028767,2]
[343717165,1732907438417,-316.311426,0.00028767,7]
[343717166,1732907438426,-316.311426,0.00028767,7]
[343717167,1732907438435,-316.311426,0.00028767,7]
[343717168,1732907438444,-316.311426,0.00028767,7]
[343717169,1732907438453,-316.311426,0.00028767,7]
[343717170,1732907438463,-316.311426,0.00028767,7]
[343717171,1732907438472,-316.311426,0.00028767,7]
[343717172,1732907438481,-316.311426,0.00028767,7]
[343717173,1732907438491,-316.311426,0.00028767,7]
[343717174,1732907438501,-316.311426,0.00028767,7]
[343717175,1732907438510,-316.311426,0.00028767,7]
[343717176,1732907438519,-316.311426,0.00028767,7]
[343717177,1732907438528,-316.311426,0.00028767,7]
[343717178,1732907438538,-316.311426,0.00028767,7]
[343717179,1732907438548,-316.311426,0.00028767,7]
[343717180,1732907438558,-316.311428,0.00028767,7]
[343717181,1732907438569,-154.402439,0.00028767,7]
[343717182,1732907438578,-151.0,0.00028767,7]
[343717183,1732907438588,-224.608932,0.00028767,7]
[343717184,1732907438598,-151.0,0.00028767,7]
[343717185,1732907438607,-151.0,0.00028767,7]
[343717186,1732907438617,-151.0,0.00028767,7]
[343717187,1732907438627,-152.302487,0.00028767,7]
[343717188,1732907438636,-159.719854,0.00028767,7]
[343717189,1732907438645,-159.719854,0.00028767,7]
[343717190,1732907438655,-159.719854,0.00028767,7]
[343717191,1732907438664,-159.719854,0.00028767,7]
[343717192,1732907438674,-159.719854,0.00028767,7]
[343717193,1732907438683,-159.719854,0.00028767,7]
[343717194,1732907438692,-159.719854,0.00028767,7]
[343717195,1732907438701,-159.719854,0.00028767,7]
[343717196,1732907438710,-159.719854,0.00028767,7]
[343717197,1732907438720,-159.719854,0.00028767,7]
[343717198,1732907438730,-159.719854,0.00028767,7]
[343717199,1732907438740,-159.719854,0.00028767,7]
[343717200,1732907438749,-159.719854,0.00028767,7]
[343717201,1732907438759,-159.719854,0.00028767,7]
[343717202,1732907438768,-159.719854,0.00028767,7]
[343717203,1732907438778,-159.719846,0.00028767,7]
[343717204,1732907438788,-151.0,0.00028767,7]
[343717205,1732907438798,-151.0,0.00028767,7]
[343717206,1732907438808,-151.0,0.00028767,7]
[343717207,1732907438818,-151.0,0.00028767,7]
[343717208,1732907438828,-151.0,0.00028767,7]
[343717209,1732907438837,-151.0,0.00028767,7]
[343717210,1732907438847,-151.0,0.00028767,7]
[343717211,1732907438857,-151.0,0.00028767,7]
[343717212,1732907438867,-151.0,0.00028767,7]
[343717213,1732907438877,-151.0,0.00028767,7]
[343717214,1732907438887,-151.0,0.00028767,7]
[343717215,1732907438896,-151.0,0.00028767,7]
[343717216,1732907438907,-151.0,0.00028767,7]
[343717217,1732907438917,-151.0,0.00028767,7]
[343717218,1732907438927,-151.0,0.00028767,7]
[343717219,1732907438936,-255.822508,0.00028767,7]
[343717220,1732907438946,-1373.839378,0.00028767,7]
[343717221,1732907438956,-1373.839378,0.00028767,7]
[343717222,1732907438966,-1373.839378,0.00028767,7]
[343717223,1732907438975,-1373.839378,0.00028767,7]
[343717224,1732907438984,-1373.839378,0.00028767,7]
[343717225,1732907438993,-1373.839378,0.00028767,7]
[343717226,1732907439003,-1373.839378,0.00028767,7]
[343717227,1732907439012,-1373.839378,0.00028767,7]
[343717228,1732907439021,-1373.839378,0.00028767,7]
[343717229,1732907439032,-1373.839378,0.00028767,7]
[343717230,1732907439042,-1373.839378,0.00028767,7]
[343717231,1732907439052,-1373.839378,0.00028767,7]
[343717232,1732907439062,-1373.839378,0.00028767,7]
[343717233,1732907439072,-1373.839378,0.00028767,7]
[343717234,1732907439082,-1373.839378,0.00028767,7]
[343717235,1732907439095,-1373.839383,0.00028767,7]
[343717236,1732907439105,-218.492217,0.00028767,7]
[343717237,1732907439115,-218.492217,0.00028767,7]
[343717238,1732907439124,-218.492217,0.00028767,7]
[343717239,1732907439134,-218.492217,0.00028767,7]
[343717240,1732907439144,-218.492217,0.00028767,7]
[343717241,1732907439153,-218.492217,0.00028767,7]
[343717242,1732907439164,-218.492217,0.00028767,7]
[343717243,1732907439174,-218.492217,0.00028767,7]
[343717244,1732907439184,-218.492217,0.00028767,7]
[343717245,1732907439193,-218.492217,0.00028767,7]
[343717246,1732907439203,-151.0,0.00028767,7]
[343717247,1732907439212,-218.492217,0.00028767,7]
[343717248,1732907439222,-151.0,0.00028767,7]
[343717249,1732907439231,-218.492217,0.00028767,7]
[343717250,1732907439241,-151.0,0.00028767,7]
[343717251,1732907439251,-218.492217,0.00028767,7]
[343717252,1732907439261,-255.691672,0.00028767,7]
[343717253,1732907439271,-218.492217,0.00028767,7]
[343717254,1732907439280,-218.492217,0.00028767,7]
[343717255,1732907439290,-218.492217,0.00028767,7]
[343717256,1732907439299,-218.492217,0.00028767,7]
[343717257,1732907439309,-218.492217,0.00028767,7]
[343717258,1732907439321,-218.492217,0.00028767,7]
[343717259,1732907439330,-218.492223,0.00028767,7]
[343717260,1732907439339,-684.441256,0.00028767,7]
[343717261,1732907439349,-684.441256,0.00028767,7]
[343717262,1732907439359,-684.441256,0.00028767,7]
[343717263,1732907439368,-684.441256,0.00028767,7]
[343717264,1732907439378,-684.441256,0.00028767,7]
[343717265,1732907439388,-684.441256,0.00028767,7]
[343717266,1732907439398,-684.441256,0.00028767,7]
[343717267,1732907439408,-684.441256,0.00028767,7]
[343717268,1732907439417,-684.441256,0.00028767,7]
[343717269,1732907439553,-684.441256,0.00028767,7]
[343717270,1732907439563,-684.441256,0.00028767,7]
[343717271,1732907439574,-684.441256,0.00028767,7]
[343717272,1732907439584,-684.441256,0.00028767,7]
[343717273,1732907439594,-684.441256,0.00028767,7]
[343717274,1732907439603,-684.441256,0.00028767,7]
[343717275,1732907439614,-684.441256,0.00028767,7]
[343717277,1732907439624,-684.441246,0.00028767,7]
[343717278,1732907439634,-500.0,0.00028767,3]
[343717279,1732907439643,-500.0,0.00028767,3]
[343717280,1732907439653,-500.0,0.00028767,3]
[343717281,1732907439663,-500.0,0.00028767,3]
[343717282,1732907439673,-609.2179997,0.00028767,3]
[343717283,1732907439682,-500.0,0.00028767,3]
[343717284,1732907439692,-500.0,0.00028767,3]
[343717285,1732907439702,-500.0,0.00028767,3]
[343717286,1732907439712,-500.0,0.00028767,3]
[343717287,1732907439721,-500.0,0.00028767,3]
[343717288,1732907439731,-500.0,0.00028767,3]
[343717289,1732907439745,-500.0,0.00028767,3]
[343717290,1732907439754,-500.0,0.00028767,3]
[343717291,1732907439764,-500.0,0.00028767,3]
[343717292,1732907439773,-500.0,0.00028767,3]
[343717293,1732907439783,-500.91096344,0.00028767,3]
[343717294,1732907439793,-500.0,0.00028767,3]
[343717295,1732907439802,-500.0,0.00028767,3]
[343717296,1732907439811,-500.0,0.00028767,3]
[343717297,1732907439822,-500.0,0.00028767,3]
[343717298,1732907439831,-500.0,0.00028767,3]
[343717299,1732907439840,-500.0,0.00028767,3]
[343717300,1732907439851,-500.0,0.00028767,3]
[343717301,1732907439861,-475.00071061,0.00028767,3]
[343717302,1732907439871,-500.0,0.00028767,3]
[343717303,1732907439880,-500.0,0.00028767,3]
[343717304,1732907439890,-500.0,0.00028767,3]
[343717305,1732907439899,-500.0,0.00028767,3]
[343717306,1732907439908,-454.13204462,0.00028767,3]
[343717307,1732907439917,-500.0,0.00028767,3]
[343717308,1732907439926,-500.0,0.00028767,3]
[343717309,1732907439936,-500.0,0.00028767,3]
[343717310,1732907439946,-500.0,0.00028767,3]
[343717311,1732907439955,-500.0,0.00028767,3]
[343717312,1732907439965,-503.42888052,0.00028767,3]
[343717313,1732907439975,-151.0,0.00028767,7]
[343717314,1732907439984,-151.0,0.00028767,7]
[343717315,1732907439994,-151.0,0.00028767,7]
[343717316,1732907440004,-151.0,0.00028767,7]
[343717317,1732907440014,-151.0,0.00028767,7]
[343717318,1732907440023,-151.0,0.00028767,7]
[343717319,1732907440032,-151.0,0.00028767,7]
[343717320,1732907440042,-174.640108,0.00028767,7]
[343717321,1732907440051,-567.2450395,0.00028767,3]
[343717322,1732907440061,-347.90374482,0.00028767,3]
[343717323,1732907440073,-500.0,0.00028767,3]
[343717324,1732907440087,-500.0,0.00028767,3]
[343717325,1732907440098,-500.0,0.00028767,3]
[343717326,1732907440107,-500.0,0.00028767,3]
[343717327,1732907440117,-500.0,0.00028767,3]
[343717328,1732907440127,-500.0,0.00028767,3]
[343717329,1732907440138,-500.0,0.00028767,3]
[343717330,1732907440148,-500.0,0.00028767,3]
[343717331,1732907440158,-500.0,0.00028767,3]
[343717332,1732907440171,-500.0,0.00028767,3]
[343717333,1732907440182,-500.0,0.00028767,3]
[343717334,1732907440192,-500.0,0.00028767,3]
[343717335,1732907440201,-617.74345857,0.00028767,3]
[343717336,1732907440211,-500.0,0.00028767,3]
[343717337,1732907440220,-500.0,0.00028767,3]
[343717338,1732907440230,-500.0,0.00028767,3]
[343717339,1732907440239,-500.0,0.00028767,3]
[343717340,1732907440248,-500.0,0.00028767,3]
[343717341,1732907440258,-500.0,0.00028767,3]